bitfinex/quotes_SOLUSD_20240621
["timestamp","ask_amount","ask_price","bid_price","bid_amount"]
[1718948936154,25.0457,133.07,133.01,29.52]
[1718948937061,9.52,133.06,133.01,29.52]
[1718948937769,9.52,133.06,133.01,20.0]
[1718948938147,9.52,133.05,133.01,20.0]
[1718948938375,9.52,133.05,133.01,19.5]
[1718948939069,9.52,133.06,133.01,19.5]
[1718948941051,9.52,133.04,133.01,19.5]
[1718948941247,9.52,133.04,132.99,9.52]
[1718948941448,9.52,133.04,133.0,20.0]
[1718948941851,9.52,133.04,132.99,20.0]
[1718948942051,9.52,133.04,132.99,29.52]
[1718948942272,9.52,133.05,132.99,29.52]
[1718948942569,15.5257,133.07,133.01,9.52]
[1718948942750,9.52,133.06,133.02,20.0]
[1718948943271,15.5257,133.07,133.02,20.0]
[1718948943474,9.52,133.06,133.02,20.0]
[1718948943645,25.0457,133.07,133.02,20.0]
[1718948944265,58.83060953,133.09,133.03,9.52]
[1718948944266,7.83244178,133.09,133.03,9.52]
[1718948944578,9.52,133.09,133.04,29.52]
[1718948944748,16.4616,133.1,133.04,29.52]
[1718948944947,9.52,133.09,133.04,29.52]
[1718948945146,9.52,133.08,133.04,20.0]
[1718948945876,9.52,133.08,133.03,20.0]
[1718948946773,9.52,133.08,133.03,29.52]
[1718948947258,9.52,133.09,133.03,29.52]
[1718948947465,9.52,133.08,133.03,29.52]
[1718948949068,22.46627935,133.1,133.03,29.52]
[1718948949250,16.4616,133.1,133.05,9.52]
[1718948949452,25.9816,133.1,133.05,9.52]
[1718948949669,25.9816,133.1,133.06,20.0]
[1718948951177,9.52,133.09,133.06,20.0]
[1718948951375,9.52,133.09,133.05,20.0]
[1718948951564,25.9816,133.1,133.05,20.0]
[1718948953067,23.48935285,133.13,133.05,20.0]
[1718948953276,15.6767,133.13,133.08,9.52]
[1718948953573,16.1468,133.15,133.09,29.52]
[1718948953772,9.52,133.16,133.11,9.52]
[1718948953971,16.1064,133.17,133.12,20.0]
[1718948954161,25.6264,133.17,133.12,20.0]
[1718948954369,25.6264,133.17,133.12,29.52]
[1718948954952,25.6264,133.17,133.12,20.0]
[1718948955181,9.52,133.16,133.12,20.0]
[1718948955365,9.52,133.14,133.11,20.0]
[1718948955571,9.52,133.13,133.09,20.0]
[1718948956267,9.52,133.13,133.07,29.52]
[1718948956476,0.17,133.16,133.07,20.0]
[1718948956776,9.52,133.09,133.03,12.2822]
[1718948956982,9.52,133.09,133.04,9.52]
[1718948957154,9.52,133.1,133.05,9.52]
[1718948957979,9.52,133.1,133.06,20.0]
[1718948958553,9.52,133.09,133.04,29.52]
[1718948960857,22.3325,133.15,133.04,20.0]
[1718948961054,22.3325,133.15,133.07,9.52]
[1718948961433,9.52,133.12,133.06,9.52]
[1718948961580,9.52,133.12,133.07,20.0]
[1718948963465,22.3325,133.15,133.07,20.0]
[1718948963466,9.52,133.11,133.07,20.0]
[1718948963667,9.52,133.11,133.05,9.52]
[1718948963869,9.52,133.11,133.06,29.52]
[1718948964063,9.52,133.12,133.07,9.52]
[1718948965186,30.14165724,133.15,133.07,9.52]
[1718948965388,9.52,133.14,133.08,20.0]
[1718948965594,9.52,133.14,133.09,9.52]
[1718948965794,9.52,133.14,133.1,20.0]
[1718948967467,22.3325,133.15,133.1,20.0]
[1718948967670,9.52,133.14,133.1,20.0]
[1718948967876,9.52,133.13,133.1,20.0]
[1718948968076,9.52,133.13,133.09,20.0]
[1718948968284,22.3325,133.15,133.09,20.0]
[1718948968478,9.52,133.13,133.09,20.0]
[1718948969601,9.52,133.14,133.09,20.0]
[1718948970381,9.52,133.14,133.09,29.52]
[1718948970801,9.52,133.14,133.09,20.0]
[1718948974708,9.52,133.17,133.11,9.52]
[1718948974888,9.52,133.17,133.12,20.0]
[1718948975215,9.52,133.16,133.12,20.0]
[1718948975574,9.52,133.15,133.12,20.0]
[1718948975772,9.52,133.15,133.1,9.52]
[1718948975975,9.52,133.16,133.11,20.0]
[1718948978400,9.52,133.16,133.11,29.52]
[1718948979996,7.80835528,133.18,133.12,9.52]
[1718948980205,255.1,133.2,133.13,9.52]
[1718948980504,9.52,133.18,133.13,9.52]
[1718948981610,9.52,133.18,133.14,20.0]
[1718948985008,9.52,133.18,133.13,9.52]
[1718948985185,9.52,133.18,133.14,20.0]
[1718948985907,9.52,133.18,133.13,20.0]
[1718948986412,45.0,133.19,133.13,20.0]
[1718948986613,9.52,133.19,133.13,29.52]
[1718948987683,9.52,133.19,133.14,9.52]
[1718948988794,261.09820031,133.2,133.14,9.52]
[1718948988997,9.52,133.19,133.14,9.52]
[1718948993204,9.52,133.18,133.13,29.52]
[1718948994903,9.52,133.16,133.13,20.0]
[1718948995203,9.52,133.16,133.11,20.0]
[1718948997599,9.52,133.16,133.11,29.52]
[1718948998119,9.52,133.17,133.11,29.52]
[1718948998932,44.45074246,133.21,133.11,29.52]
[1718948999218,9.52,133.17,133.11,29.52]
[1718949001610,9.52,133.17,133.12,9.52]
[1718949001822,9.52,133.19,133.13,29.52]
[1718949002002,6.03074246,133.21,133.13,20.0]
[1718949002204,9.52,133.21,133.16,9.52]
[1718949002403,16.2467,133.22,133.16,9.52]
[1718949002612,9.52,133.21,133.16,9.52]
[1718949003708,23.31876779,133.24,133.18,9.52]
[1718949003895,15.51622993,133.24,133.19,20.0]
[1718949004899,5.99622993,133.24,133.19,20.0]
[1718949005098,9.52,133.24,133.19,20.0]
[1718949005300,9.52,133.23,133.18,29.52]
[1718949006529,6.6255,133.25,133.18,29.52]
[1718949006530,9.52,133.24,133.18,29.52]
[1718949009517,15.60671564,133.25,133.19,9.52]
[1718949009706,9.52,133.24,133.2,20.0]
[1718949011608,21.74200842,133.26,133.2,20.0]
[1718949011808,9.52,133.24,133.2,20.0]
[1718949014425,6.02090842,133.26,133.2,20.0]
[1718949014620,9.52,133.25,133.2,29.52]
[1718949014815,9.52,133.26,133.2,29.52]
[1718949015615,7.8009709,133.28,133.21,9.52]
[1718949015820,9.52,133.27,133.22,29.52]
[1718949016106,9.52,133.28,133.23,9.52]
[1718949016306,9.52,133.27,133.24,20.0]
[1718949016903,9.52,133.27,133.23,20.0]
[1718949023121,9.52,133.28,133.22,20.0]
[1718949023321,9.52,133.24,133.19,29.52]
[1718949023533,9.52,133.24,133.19,20.0]
[1718949023841,38.08,133.28,133.19,20.0]
[1718949024037,9.52,133.24,133.19,20.0]
[1718949024732,38.08,133.28,133.19,20.0]
[1718949024733,9.52,133.23,133.19,20.0]
[1718949025738,9.52,133.21,133.19,20.0]
[1718949027544,9.52,133.22,133.19,20.0]
[1718949029031,9.52,133.23,133.19,20.0]
[1718949032135,9.52,133.24,133.19,20.0]
[1718949032335,9.52,133.24,133.19,29.52]
[1718949033039,8.01508631,133.27,133.19,29.52]
[1718949033343,9.52,133.25,133.19,20.0]
[1718949033529,9.52,133.25,133.19,29.52]
[1718949034419,9.52,133.24,133.19,29.52]
[1718949034631,8.01508631,133.27,133.19,29.52]
[1718949034831,45.17,133.26,133.19,29.52]
[1718949036124,7.84508631,133.27,133.19,29.52]
[1718949036329,15.3997,133.29,133.21,9.52]
[1718949036534,9.52,133.27,133.22,20.0]
[1718949036840,9.52,133.26,133.22,20.0]
[1718949039022,9.52,133.26,133.21,9.52]
[1718949039218,9.52,133.26,133.22,20.0]
[1718949039836,9.52,133.26,133.21,20.0]
[1718949041050,15.3997,133.29,133.21,29.52]
[1718949041432,9.52,133.28,133.23,21.8022]
[1718949041747,9.52,133.28,133.24,20.0]
[1718949043340,14.00478652,133.3,133.24,20.0]
[1718949043654,9.52,133.26,133.21,9.52]
[1718949043845,9.52,133.27,133.22,20.0]
[1718949044532,9.52,133.26,133.22,20.0]
[1718949044731,9.52,133.26,133.2,12.2822]
[1718949044732,9.52,133.26,133.21,29.52]
[1718949048044,45.0,133.29,133.21,29.52]
[1718949048447,9.52,133.27,133.22,9.52]
[1718949048647,45.0,133.29,133.23,20.0]
[1718949048833,9.52,133.28,133.23,20.0]
[1718949049458,9.52,133.27,133.23,20.0]
[1718949050454,9.52,133.26,133.23,20.0]
[1718949050772,9.52,133.26,133.22,20.0]
[1718949051139,9.52,133.26,133.21,20.0]
[1718949053655,9.52,133.25,133.21,20.0]
[1718949054158,9.52,133.24,133.21,20.0]
[1718949055571,9.52,133.25,133.21,20.0]
[1718949056469,9.52,133.24,133.21,20.0]
[1718949059871,9.52,133.22,133.18,20.0]
[1718949063545,9.52,133.23,133.18,20.0]
[1718949064350,9.52,133.23,133.18,29.52]
[1718949069054,9.52,133.23,133.18,20.0]
[1718949069554,6.8387,133.27,133.18,20.0]
[1718949069753,9.52,133.23,133.18,20.0]
[1718949069948,6.3287,133.27,133.2,9.52]
[1718949070171,24.26290967,133.28,133.21,29.52]
[1718949070349,9.52,133.27,133.22,20.0]
[1718949071460,9.52,133.26,133.22,20.0]
[1718949072474,9.52,133.25,133.2,9.52]
[1718949072690,9.52,133.26,133.2,9.52]
[1718949072851,9.52,133.26,133.21,20.0]
[1718949073646,9.52,133.26,133.21,29.52]
[1718949074373,9.52,133.27,133.21,29.52]
[1718949074575,16.4146,133.28,133.21,29.52]
[1718949074781,9.52,133.27,133.21,29.52]
[1718949075353,12.64568009,133.3,133.22,9.52]
[1718949075559,9.52,133.27,133.23,20.0]
[1718949075769,45.34,133.29,133.23,20.0]
[1718949075770,9.52,133.28,133.23,20.0]
[1718949076560,45.0,133.29,133.23,20.0]
[1718949076764,9.52,133.28,133.23,20.0]
[1718949080475,6.15948009,133.3,133.23,29.52]
[1718949080667,24.26470714,133.31,133.23,29.52]
[1718949080974,45.0,133.3,133.23,29.52]
[1718949081179,9.52,133.28,133.23,29.52]
[1718949082482,45.0,133.3,133.23,29.52]
[1718949082673,9.52,133.28,133.23,29.52]
[1718949084686,255.1,133.35,133.27,9.52]
[1718949084988,255.1,133.35,133.3,21.8022]
[1718949085188,0.8323195,133.37,133.32,9.52]
[1718949085392,0.8323195,133.37,133.34,9.52]
[1718949085567,0.8323195,133.37,133.35,20.0]
[1718949085764,0.8323195,133.37,133.35,29.52]
[1718949085968,0.8323195,133.37,133.35,20.0]
[1718949086180,0.8323195,133.37,133.32,9.52]
[1718949086181,10.3523195,133.37,133.32,9.52]
[1718949086386,9.52,133.36,133.33,20.0]
[1718949086990,9.52,133.36,133.32,20.0]
[1718949087483,9.52,133.36,133.31,20.0]
[1718949087695,9.52,133.36,133.31,29.52]
[1718949089094,0.8323195,133.37,133.31,20.0]
[1718949089393,10.3523195,133.37,133.32,9.52]
[1718949089572,10.3523195,133.37,133.33,20.0]
[1718949089766,9.52,133.36,133.33,20.0]
[1718949090173,9.52,133.36,133.32,20.0]
[1718949090786,10.3523195,133.37,133.32,20.0]
[1718949090977,10.3523195,133.37,133.32,29.52]
[1718949093389,9.52,133.35,133.32,20.0]
[1718949093594,9.52,133.35,133.31,20.0]
[1718949094177,9.52,133.36,133.31,29.52]
[1718949095299,10.3523195,133.37,133.31,20.0]
[1718949095489,0.8323195,133.37,133.32,9.52]
[1718949095688,0.8323195,133.37,133.33,20.0]
[1718949095884,0.8323195,133.37,133.33,29.52]
[1718949096200,0.8323195,133.37,133.34,9.52]
[1718949097775,0.8323195,133.37,133.33,29.52]
[1718949098299,0.8323195,133.37,133.34,9.52]
[1718949098593,9.52,133.35,133.33,18.40493007]
[1718949098796,9.52,133.35,133.29,15.7391]
[1718949099178,0.8323195,133.37,133.3,9.52]
[1718949099490,9.52,133.35,133.3,9.52]
[1718949100805,9.52,133.35,133.31,20.0]
[1718949101100,9.52,133.32,133.25,6.2191]
[1718949101302,17.14407966,133.33,133.25,6.2191]
[1718949101598,9.52,133.29,133.26,20.0]
[1718949102069,9.52,133.29,133.25,20.0]
[1718949102686,9.52,133.29,133.24,21.8022]
[1718949102687,9.52,133.29,133.22,6.2191]
[1718949102906,0.34,133.3,133.23,20.0]
[1718949103074,9.52,133.26,133.21,20.0]
[1718949103276,9.52,133.25,133.21,20.0]
[1718949103477,51.8923,133.29,133.19,6.1811]
[1718949104510,51.7223,133.29,133.19,6.1811]
[1718949104981,51.7223,133.29,133.2,20.0]
[1718949107005,51.3823,133.29,133.2,20.0]
[1718949107300,51.3823,133.29,133.21,0.17]
[1718949107301,45.0,133.29,133.21,0.17]
[1718949110197,7.81944868,133.32,133.21,0.17]
[1718949110499,267.7211065,133.33,133.22,12.2822]
[1718949110697,267.7211065,133.33,133.23,0.34]
[1718949110898,267.7211065,133.33,133.23,20.34]
[1718949111586,45.51,133.32,133.23,20.34]
[1718949112905,45.34,133.32,133.23,20.34]
[1718949113111,45.17,133.32,133.23,20.34]
[1718949115778,45.17,133.32,133.23,20.0]
[1718949115983,0.34,133.31,133.23,20.0]
[1718949116281,0.17,133.3,133.23,20.0]
[1718949116688,45.0,133.32,133.23,20.0]
[1718949121106,0.51,133.31,133.23,20.0]
[1718949125623,45.0,133.32,133.23,20.0]
[1718949126231,34.5112,133.36,133.24,6.5461]
[1718949126448,6.0412,133.36,133.25,20.0]
[1718949126597,13.86480691,133.36,133.25,20.0]
[1718949127526,0.17,133.35,133.25,20.0]
[1718949127741,45.51,133.35,133.25,20.0]
[1718949127900,7.82360691,133.36,133.26,12.7922]
[1718949128232,7.82360691,133.36,133.28,6.2191]
[1718949128524,7.82360691,133.36,133.29,20.0]
[1718949128922,7.82360691,133.36,133.3,12.2822]
[1718949129101,0.8323195,133.37,133.31,20.0]
[1718949130126,0.8323195,133.37,133.32,0.51]
[1718949130419,0.8323195,133.37,133.33,6.1041]
[1718949130613,0.8323195,133.37,133.34,20.0]
[1718949133102,0.8323195,133.37,133.35,12.4522]
[1718949133403,0.8323195,133.37,133.36,20.0]
[1718949144498,0.8323195,133.37,133.31,12.2822]
[1718949144704,0.8323195,133.37,133.32,20.0]
[1718949147426,0.8323195,133.37,133.33,0.34]
[1718949148126,0.8323195,133.37,133.33,0.17]
[1718949148328,0.8323195,133.37,133.32,20.0]
[1718949149015,0.8323195,133.37,133.33,0.51]
[1718949151107,0.8323195,133.37,133.32,20.0]
[1718949153929,16.3868,133.36,133.32,20.0]
[1718949154108,16.3868,133.36,133.28,20.0]
[1718949154313,45.17,133.35,133.27,20.0]
[1718949154622,16.3868,133.36,133.27,20.0]
[1718949157141,16.3868,133.36,133.28,0.17]
[1718949157337,16.3868,133.36,133.28,0.51]
[1718949160742,7.1951195,133.37,133.28,0.51]
[1718949161119,0.8323195,133.37,133.28,28.98]
[1718949161323,0.8323195,133.37,133.3,6.0318]
[1718949161517,0.8323195,133.37,133.31,20.17]
[1718949167037,0.8323195,133.37,133.31,20.0]
[1718949167539,0.8323195,133.37,133.29,20.0]
[1718949167728,8.66083157,133.37,133.27,20.0]
[1718949168042,45.0,133.36,133.27,20.0]
[1718949168422,45.0,133.36,133.28,0.17]
[1718949171926,8.66083157,133.37,133.28,0.17]
[1718949174926,8.66083157,133.37,133.28,0.51]
[1718949175640,9.47,133.35,133.3,9.47]
[1718949175846,9.47,133.35,133.31,20.0]
[1718949177651,9.47,133.36,133.31,20.0]
[1718949178142,9.47,133.35,133.31,20.0]
[1718949179844,9.47,133.35,133.3,20.0]
[1718949180330,0.8323195,133.37,133.3,20.0]
[1718949180531,9.47,133.33,133.28,9.64]
[1718949180746,9.47,133.33,133.28,0.17]
[1718949181629,9.47,133.34,133.28,9.64]
[1718949181831,9.47,133.34,133.29,20.0]
[1718949184134,0.8323195,133.37,133.29,20.0]
[1718949184135,9.47,133.32,133.29,20.0]
[1718949184330,9.47,133.32,133.27,20.0]
[1718949187457,9.47,133.32,133.27,29.47]
[1718949188561,9.47,133.32,133.27,20.0]
[1718949189855,21.9185,133.35,133.27,29.47]
[1718949190047,9.47,133.32,133.27,29.47]
[1718949190755,21.9185,133.35,133.27,29.47]
[1718949191160,21.9185,133.35,133.28,9.47]
[1718949191342,21.9185,133.35,133.29,20.0]
[1718949191538,9.47,133.33,133.29,20.0]
[1718949193451,21.9185,133.35,133.29,20.0]
[1718949193758,9.47,133.33,133.29,20.0]
[1718949194741,9.47,133.32,133.27,20.0]
[1718949196563,9.47,133.32,133.27,29.47]
[1718949196857,9.47,133.33,133.27,29.47]
[1718949199751,21.9185,133.35,133.27,29.47]
[1718949199951,9.47,133.33,133.27,29.47]
[1718949200577,21.9185,133.35,133.27,29.47]
[1718949200948,9.47,133.33,133.27,29.47]
[1718949201150,9.47,133.32,133.27,20.0]
[1718949201359,9.47,133.29,133.27,20.0]
[1718949201564,3.41920927,133.34,133.23,29.47]
[1718949201771,9.47,133.28,133.23,29.47]
[1718949202270,9.47,133.29,133.23,29.47]
[1718949202572,9.47,133.29,133.24,0.17]
[1718949203772,8.12678277,133.33,133.24,0.17]
[1718949203965,9.47,133.29,133.24,0.17]
[1718949204351,9.47,133.29,133.24,9.47]
[1718949204651,9.47,133.29,133.25,20.0]
[1718949205150,9.47,133.3,133.25,20.0]
[1718949205358,7.78678277,133.33,133.26,9.47]
[1718949205560,9.47,133.32,133.27,20.0]
[1718949206276,7.78678277,133.33,133.27,20.0]
[1718949206583,9.47,133.33,133.28,9.47]
[1718949206763,9.47,133.33,133.29,20.0]
[1718949207068,21.9185,133.35,133.29,20.0]
[1718949207273,9.47,133.33,133.29,20.0]
[1718949208777,21.9185,133.35,133.29,20.0]
[1718949208959,9.47,133.34,133.29,20.0]
[1718949210163,15.5542,133.35,133.29,20.0]
[1718949210365,9.47,133.34,133.29,29.47]
[1718949213178,15.5542,133.35,133.29,29.47]
[1718949213358,9.47,133.34,133.29,29.47]
[1718949214183,0.8323195,133.37,133.29,20.0]
[1718949214360,9.47,133.36,133.3,9.64]
[1718949214564,9.47,133.36,133.31,20.0]
[1718949215363,9.47,133.36,133.3,9.47]
[1718949215569,9.47,133.36,133.31,20.0]
[1718949215778,9.47,133.35,133.31,20.0]
[1718949216768,9.47,133.35,133.29,0.17]
[1718949216966,9.47,133.35,133.3,9.47]
[1718949217158,9.47,133.35,133.31,20.0]
[1718949217979,0.8323195,133.37,133.31,20.0]
[1718949218187,9.47,133.35,133.31,20.0]
[1718949219190,0.8323195,133.37,133.31,20.0]
[1718949219372,0.8323195,133.37,133.32,9.47]
[1718949219573,10.3023195,133.37,133.33,20.0]
[1718949220281,0.8323195,133.37,133.33,20.0]
[1718949220484,0.8323195,133.37,133.33,29.47]
[1718949220866,0.8323195,133.37,133.33,20.0]
[1718949221274,0.8323195,133.37,133.33,29.47]
[1718949221981,0.8323195,133.37,133.33,20.0]
[1718949226495,0.8323195,133.37,133.33,29.47]
[1718949230495,0.8323195,133.37,133.33,20.0]
[1718949230791,0.8323195,133.37,133.33,29.47]
[1718949231707,0.8323195,133.37,133.34,9.47]
[1718949231879,0.8323195,133.37,133.35,20.0]
[1718949233381,0.8323195,133.37,133.34,9.47]
[1718949233578,0.8323195,133.37,133.35,20.0]
[1718949233798,0.8323195,133.37,133.33,29.47]
[1718949234903,0.8323195,133.37,133.33,20.0]
[1718949235103,0.8323195,133.37,133.33,29.47]
[1718949240283,0.8323195,133.37,133.33,20.0]
[1718949240485,0.8323195,133.37,133.31,20.0]
[1718949240693,9.47,133.35,133.3,20.0]
[1718949243716,9.47,133.36,133.3,29.47]
[1718949244023,9.47,133.36,133.31,9.47]
[1718949244323,0.8323195,133.37,133.32,20.0]
[1718949244626,9.47,133.36,133.32,20.0]
[1718949244789,0.8323195,133.37,133.32,20.0]
[1718949244990,0.8323195,133.37,133.32,9.47]
[1718949245325,0.8323195,133.37,133.33,20.0]
[1718949247011,0.8323195,133.37,133.33,29.47]
[1718949250729,0.8323195,133.37,133.34,9.47]
[1718949250929,0.8323195,133.37,133.35,20.0]
[1718949251414,0.8323195,133.37,133.34,20.0]
[1718949253590,0.8323195,133.37,133.35,9.47]
[1718949253797,0.8323195,133.37,133.36,20.0]
[1718949256930,0.8323195,133.37,133.36,29.47]
[1718949257225,0.8323195,133.37,133.36,9.98]
[1718949257538,0.8323195,133.37,133.36,29.98]
[1718949258995,0.8323195,133.37,133.36,29.64]
[1718949259202,0.8323195,133.37,133.36,20.0]
[1718949259401,0.8323195,133.37,133.35,9.47]
[1718949259601,0.8323195,133.37,133.36,20.0]
[1718949259809,0.8323195,133.37,133.35,9.47]
[1718949260107,0.8323195,133.37,133.36,20.0]
[1718949260507,0.8323195,133.37,133.36,29.47]
[1718949261611,0.8323195,133.37,133.36,20.0]
[1718949261815,0.8323195,133.37,133.35,9.47]
[1718949262016,0.8323195,133.37,133.36,20.0]
[1718949263145,0.8323195,133.37,133.36,29.64]
[1718949263310,0.8323195,133.37,133.36,29.98]
[1718949263628,0.8323195,133.37,133.36,20.0]
[1718949263832,0.8323195,133.37,133.35,20.0]
[1718949265338,0.8323195,133.37,133.34,29.64]
[1718949265534,10.3023195,133.37,133.34,20.0]
[1718949265826,10.3023195,133.37,133.33,9.47]
[1718949265827,0.8323195,133.37,133.33,9.47]
[1718949266043,0.8323195,133.37,133.31,20.0]
[1718949266216,0.8323195,133.37,133.33,9.47]
[1718949266414,0.8323195,133.37,133.34,20.0]
[1718949267828,0.8323195,133.37,133.33,20.0]
[1718949269723,0.8323195,133.37,133.33,29.47]
[1718949270325,0.8323195,133.37,133.33,20.0]
[1718949271531,0.8323195,133.37,133.33,29.47]
[1718949275413,0.8323195,133.37,133.34,0.17]
[1718949276919,0.8323195,133.37,133.34,0.34]
[1718949279844,0.8323195,133.37,133.34,9.81]
[1718949280048,0.8323195,133.37,133.35,29.47]
[1718949280221,0.8323195,133.37,133.35,9.47]
[1718949280419,0.8323195,133.37,133.36,20.0]
[1718949280838,0.8323195,133.37,133.35,20.0]
[1718949281643,0.8323195,133.37,133.34,0.51]
[1718949281644,0.8323195,133.37,133.34,20.51]
[1718949284740,0.8323195,133.37,133.34,20.17]
[1718949286555,0.8323195,133.37,133.34,20.0]
[1718949286858,10.3023195,133.37,133.32,9.47]
[1718949287037,10.3023195,133.37,133.33,20.17]
[1718949287437,10.3023195,133.37,133.33,20.0]
[1718949287847,10.3023195,133.37,133.31,29.81]
[1718949288043,10.3023195,133.37,133.32,0.17]
[1718949288443,10.3023195,133.37,133.31,20.0]
[1718949288658,9.47,133.36,133.31,20.0]
[1718949289731,9.47,133.36,133.31,29.47]
[1718949290446,10.3023195,133.37,133.32,0.51]
[1718949291257,0.8323195,133.37,133.32,0.51]
[1718949291458,10.3023195,133.37,133.32,0.51]
[1718949292259,0.8323195,133.37,133.32,0.51]
[1718949292454,10.3023195,133.37,133.32,9.98]
[1718949292655,10.3023195,133.37,133.33,20.0]
[1718949295469,10.3023195,133.37,133.32,9.98]
[1718949295645,9.47,133.36,133.33,20.0]
[1718949295850,9.47,133.35,133.3,9.47]
[1718949296048,9.47,133.36,133.31,29.98]
[1718949296248,9.47,133.36,133.31,9.98]
[1718949296460,9.47,133.36,133.32,20.0]
[1718949296838,7.3572195,133.37,133.32,20.0]
[1718949297039,16.8272195,133.37,133.32,29.47]
[1718949297238,16.8272195,133.37,133.32,20.0]
[1718949297638,7.3572195,133.37,133.32,20.0]
[1718949297848,16.8272195,133.37,133.32,20.0]
[1718949301367,7.3572195,133.37,133.33,0.17]
[1718949301753,7.3572195,133.37,133.33,9.64]
[1718949301952,7.3572195,133.37,133.34,20.0]
[1718949302171,7.3572195,133.37,133.33,0.17]
[1718949304345,16.8272195,133.37,133.33,0.17]
[1718949304548,7.3572195,133.37,133.33,0.17]
[1718949304845,16.8272195,133.37,133.33,0.17]
[1718949305060,16.8272195,133.37,133.32,29.47]
[1718949305061,16.8272195,133.37,133.32,20.0]
[1718949305251,16.8272195,133.37,133.31,9.98]
[1718949305457,16.8272195,133.37,133.32,20.17]
[1718949306466,7.3572195,133.37,133.32,20.17]
[1718949306695,7.3572195,133.37,133.32,29.64]
[1718949307480,7.3572195,133.37,133.32,20.17]
[1718949307658,16.8272195,133.37,133.32,0.17]
[1718949307966,16.8272195,133.37,133.32,20.17]
[1718949308759,7.3572195,133.37,133.32,20.17]
[1718949308966,9.47,133.36,133.33,20.0]
[1718949309170,16.8272195,133.37,133.32,0.17]
[1718949311276,25.9245,133.36,133.31,20.0]
[1718949311574,25.9245,133.36,133.29,20.0]
[1718949311575,16.4545,133.36,133.29,20.0]
[1718949311764,9.47,133.33,133.28,20.0]
[1718949312780,9.47,133.35,133.29,9.47]
[1718949312975,9.47,133.35,133.3,20.17]
[1718949314365,9.47,133.34,133.3,20.17]
[1718949314568,9.47,133.34,133.3,0.17]
[1718949315282,9.47,133.33,133.29,20.0]
[1718949315577,9.47,133.33,133.28,9.64]
[1718949315777,9.47,133.33,133.29,20.0]
[1718949316367,9.47,133.33,133.28,20.17]
[1718949318984,16.4545,133.36,133.28,20.17]
[1718949319186,9.47,133.33,133.28,20.17]
[1718949319884,9.47,133.3,133.28,20.0]
[1718949320193,9.47,133.3,133.24,1.30560288]